bitfinex/quotes_BTCUSD_20251209
["timestamp","ask_amount","ask_price","bid_price","bid_amount"]
[1765252810817,0.01105045,90494.0,90486.0,0.23207776]
[1765252811018,0.01105057,90493.0,90486.0,0.01105143]
[1765252811375,0.01611962,90496.0,90491.0,0.22101645]
[1765252811576,0.02743818,90498.0,90495.0,0.01105033]
[1765252811792,0.01744,90498.0,90495.0,0.01105033]
[1765252812015,0.02848996,90498.0,90495.0,0.01105033]
[1765252812214,0.01737805,90498.0,90495.0,0.01105033]
[1765252812737,0.01837805,90498.0,90495.0,0.01105033]
[1765252812979,0.01737805,90498.0,90495.0,0.01105033]
[1765252813185,0.02842801,90498.0,90495.0,0.01105033]
[1765252813391,0.02901327,90498.0,90495.0,0.01105033]
[1765252813938,0.01105009,90497.0,90494.0,0.01105045]
[1765252814171,0.02901327,90498.0,90494.0,0.01105045]
[1765252814766,0.01105009,90497.0,90493.0,0.23206111]
[1765252814971,0.01105009,90497.0,90494.0,0.01105045]
[1765252815136,0.01105009,90497.0,90493.0,0.23206174]
[1765252815333,0.01690136,90498.0,90495.0,0.01105033]
[1765252815983,0.00038619,90499.0,90496.0,0.01105021]
[1765252816572,0.00038619,90499.0,90496.0,0.23205359]
[1765252816847,0.00038619,90499.0,90497.0,0.2210018]
[1765252817020,0.01105009,90497.0,90494.0,0.01105045]
[1765252817196,0.03304609,90497.0,90494.0,0.01105045]
[1765252817397,0.01105033,90495.0,90491.0,0.01105082]
[1765252817600,0.01041922,90496.0,90492.0,0.0110507]
[1765252817833,0.01105045,90494.0,90489.0,0.01105106]
[1765252817991,0.01105045,90494.0,90486.0,0.01105143]
[1765252817992,0.021996,90488.0,90487.0,0.01105131]
[1765252818415,0.021996,90490.0,90489.0,0.01105106]
[1765252818638,0.01105045,90494.0,90490.0,0.01105094]
[1765252819034,0.01205045,90494.0,90490.0,0.01105094]
[1765252819352,0.01105045,90494.0,90490.0,0.01105094]
[1765252819538,0.03298989,90492.0,90487.0,0.01105131]
[1765252819739,0.03298989,90492.0,90486.0,0.01105143]
[1765252819740,0.01105094,90490.0,90486.0,0.01105143]
[1765252819943,0.01105106,90489.0,90485.0,0.01105155]
[1765252820291,0.01105094,90490.0,90486.0,0.01105143]
[1765252820501,0.01105094,90490.0,90484.0,0.22103355]
[1765252820502,0.23207295,90489.0,90484.0,0.23208445]
[1765252820707,0.03298989,90492.0,90489.0,0.01105106]
[1765252820914,0.03298989,90492.0,90487.0,0.22102575]
[1765252821113,0.01105082,90491.0,90488.0,0.01105118]
[1765252821554,0.03298989,90492.0,90488.0,0.01105118]
[1765252821873,0.03298989,90492.0,90488.0,0.22102378]
[1765252822066,0.01105094,90490.0,90487.0,0.01105131]
[1765252822469,0.01105082,90491.0,90488.0,0.01105118]
[1765252822628,0.01105094,90490.0,90487.0,0.01105131]
[1765252822835,0.01105094,90490.0,90486.0,0.01105143]
[1765252823052,0.02191399,90488.0,90486.0,0.01105143]
[1765252823262,0.02191399,90488.0,90486.0,0.23207843]
[1765252823695,0.02193938,90488.0,90486.0,0.23207843]
[1765252824096,0.02193938,90488.0,90487.0,0.001]
[1765252824318,0.02193938,90488.0,90476.0,0.323]
[1765252824319,0.01105204,90481.0,90476.0,0.323]
[1765252824461,0.01086352,90482.0,90478.0,0.33405241]
[1765252824677,0.0328029,90482.0,90478.0,0.323]
[1765252824915,0.02193938,90478.0,90471.0,0.02193938]
[1765252825113,0.01105289,90474.0,90470.0,0.32399999]
[1765252825347,0.01105289,90474.0,90468.0,0.01105363]
[1765252825548,0.02193938,90478.0,90470.0,0.00099999]
[1765252825549,0.01105302,90473.0,90470.0,0.00099999]
[1765252825753,0.01105302,90473.0,90464.0,0.01744]
[1765252825754,0.01105302,90473.0,90464.0,0.01105412]
[1765252825956,0.001,90482.0,90458.0,0.01105485]
[1765252825957,0.01105424,90463.0,90458.0,0.01105485]
[1765252826168,0.01105375,90467.0,90461.0,0.01105448]
[1765252826169,0.01105387,90466.0,90461.0,0.01105448]
[1765252826388,0.00999818,90467.0,90464.0,0.01105412]
[1765252826637,0.00999818,90467.0,90456.0,0.01105509]
[1765252826638,0.01105399,90465.0,90456.0,0.01105509]
[1765252826831,0.22107753,90466.0,90462.0,0.01105436]
[1765252826832,0.01105387,90466.0,90462.0,0.01105436]
[1765252827028,0.01105399,90465.0,90462.0,0.01105436]
[1765252827256,0.01105448,90461.0,90458.0,0.002]
[1765252827426,0.22109219,90460.0,90458.0,0.002]
[1765252827626,0.22109219,90460.0,90456.0,0.01105509]
[1765252827627,0.02193938,90457.0,90456.0,0.01105509]
[1765252827831,0.02193938,90457.0,90456.0,0.01205509]
[1765252828026,0.02193938,90457.0,90456.0,0.01105509]
[1765252828591,0.0219774,90457.0,90456.0,0.01105509]
[1765252828796,0.01105473,90459.0,90456.0,0.01105509]
[1765252829003,0.01105473,90459.0,90456.0,0.01305509]
[1765252829259,0.01105448,90461.0,90457.0,0.01105497]
[1765252829710,0.0219774,90460.0,90457.0,0.01105497]
[1765252830736,0.01105448,90461.0,90457.0,0.01105497]
[1765252830954,0.0219774,90461.0,90458.0,0.01105485]
[1765252831299,0.0219774,90461.0,90458.0,0.23215133]
[1765252831705,0.0219774,90461.0,90458.0,0.01105485]
[1765252832586,0.25412237,90461.0,90457.0,0.01105497]
[1765252832853,0.03303188,90461.0,90457.0,0.01105497]
[1765252833031,0.0219774,90461.0,90458.0,0.23215193]
[1765252833190,5.972e-05,90466.0,90463.0,0.01105424]
[1765252833533,0.00979821,90467.0,90464.0,0.01105412]
[1765252834060,0.01602606,90468.0,90465.0,0.01105399]
[1765252834288,0.24954676,90476.0,90469.0,0.22106929]
[1765252834469,0.01744,90476.0,90473.0,0.23211308]
[1765252835005,0.01105265,90476.0,90472.0,0.01105314]
[1765252835324,0.01105253,90477.0,90473.0,0.01105302]
[1765252835536,0.01105241,90478.0,90474.0,0.01105289]
[1765252836336,0.01105253,90477.0,90474.0,0.01105289]
[1765252836700,0.01086405,90477.0,90474.0,0.01105289]
[1765252836985,0.01105277,90475.0,90472.0,0.01105314]
[1765252837213,0.01105265,90476.0,90473.0,0.01105302]
[1765252837385,0.01105265,90476.0,90474.0,0.001]
[1765252837794,0.01105265,90476.0,90473.0,0.01105302]
[1765252837955,0.01105265,90476.0,90474.0,0.001]
[1765252838340,0.01086405,90477.0,90474.0,0.01105289]
[1765252839506,0.01073742,90478.0,90475.0,0.01105277]
[1765252839687,0.03297438,90479.0,90476.0,0.01105265]
[1765252840169,0.22104185,90481.0,90477.0,0.23210307]
[1765252840170,0.01105204,90481.0,90477.0,0.23210307]
[1765252840371,0.03297402,90482.0,90479.0,0.01105228]
[1765252840782,0.01105204,90481.0,90477.0,0.01105253]
[1765252840985,0.01105228,90479.0,90476.0,0.01105265]
[1765252841182,0.01073733,90479.0,90476.0,0.01105265]
[1765252841385,0.01105204,90481.0,90478.0,0.01105241]
[1765252841851,0.01105192,90482.0,90478.0,0.01105241]
[1765252842407,0.01098995,90482.0,90479.0,0.01105228]
[1765252843900,0.0113761,90482.0,90479.0,0.01105228]
[1765252844138,0.01105204,90481.0,90478.0,0.01105241]
[1765252844342,0.01105265,90476.0,90472.0,0.01105314]
[1765252844512,0.22105554,90475.0,90471.0,0.23211752]
[1765252844692,0.23211344,90473.0,90470.0,0.00099999]
[1765252845445,0.01105363,90468.0,90465.0,0.01266686]
[1765252845685,0.01602606,90470.0,90467.0,0.01105375]
[1765252846188,0.01105326,90471.0,90468.0,0.01105363]
[1765252846320,0.03297512,90473.0,90469.0,0.01105351]
[1765252846527,0.01105314,90472.0,90470.0,0.002]
[1765252846746,0.03297512,90473.0,90469.0,0.01105351]
[1765252846747,0.01105302,90473.0,90469.0,0.01105351]
[1765252847229,0.01105314,90472.0,90469.0,0.01105351]
[1765252847715,0.01105314,90472.0,90470.0,0.002]
[1765252847920,0.01105289,90474.0,90470.0,0.002]
[1765252848140,0.0219221,90476.0,90473.0,0.01105302]
[1765252848340,0.0219221,90480.0,90477.0,0.01105253]
[1765252848489,0.01143807,90482.0,90478.0,0.01105241]
[1765252848694,0.00999818,90481.0,90478.0,0.01105241]
[1765252848865,0.01143807,90482.0,90479.0,0.01105228]
[1765252849062,0.00038615,90482.0,90479.0,0.23209787]
[1765252849642,0.00038615,90482.0,90479.0,0.01105228]
[1765252849802,0.23247672,90482.0,90475.0,0.01105277]
[1765252850006,0.2210601,90474.0,90470.0,0.00199999]
[1765252850204,0.2210601,90474.0,90470.0,0.00099999]
[1765252850636,0.01105302,90473.0,90470.0,0.00099999]
[1765252850834,0.23211585,90473.0,90470.0,0.00099999]
[1765252851028,0.01105302,90473.0,90470.0,0.01205337]
[1765252851416,0.01105302,90473.0,90470.0,0.00199999]
[1765252851617,0.23211573,90473.0,90470.0,0.00199999]
[1765252851801,0.01602606,90472.0,90470.0,0.00199999]
[1765252851998,0.0158376,90472.0,90470.0,0.00199999]
[1765252852375,0.0158376,90472.0,90470.0,0.00561286]
[1765252852593,0.01105302,90473.0,90470.0,0.00261286]
[1765252852924,0.01105302,90473.0,90470.0,0.00561286]
[1765252853652,0.01105302,90473.0,90470.0,0.00361286]
[1765252854051,0.01105302,90473.0,90470.0,0.00561286]
[1765252854942,0.01105302,90473.0,90470.0,0.00461287]
[1765252855610,0.22106287,90472.0,90470.0,0.00461287]
[1765252856202,0.01105302,90473.0,90470.0,0.00461287]
[1765252856420,0.01105302,90473.0,90470.0,0.00361287]
[1765252856633,0.01098978,90473.0,90470.0,0.00361287]
[1765252856784,0.01098978,90473.0,90470.0,0.00261287]
[1765252856987,0.01098978,90473.0,90470.0,0.00461287]
[1765252857183,0.01093101,90473.0,90470.0,0.00461287]
[1765252857443,0.01093101,90473.0,90470.0,0.00361287]
[1765252857676,0.23199368,90473.0,90470.0,0.00461287]
[1765252858209,0.23199368,90473.0,90470.0,0.00261287]
[1765252858615,0.23199368,90473.0,90470.0,0.00461287]
[1765252859354,0.01093101,90473.0,90470.0,0.00461287]
[1765252859722,0.02676861,90473.0,90470.0,0.00461287]
[1765252860345,0.01105265,90476.0,90470.0,0.00461287]
[1765252860346,0.01105277,90475.0,90470.0,0.01566625]
[1765252860522,0.22106531,90471.0,90470.0,0.003]
[1765252860751,0.23106349,90471.0,90470.0,0.003]
[1765252861515,0.23106349,90471.0,90470.0,0.001]
[1765252861652,0.23206349,90471.0,90470.0,0.001]
[1765252862016,0.03297622,90464.0,90461.0,0.01105448]
[1765252862312,0.01105424,90463.0,90460.0,0.0110546]
[1765252862540,0.03297622,90464.0,90461.0,0.23214373]
[1765252862541,0.02186013,90464.0,90461.0,0.23214373]
[1765252862659,0.01105387,90466.0,90462.0,0.01105436]
[1765252862867,0.01105387,90466.0,90463.0,0.01105424]
[1765252863272,0.001,90471.0,90468.0,0.23212627]
[1765252863525,0.22106001,90474.0,90471.0,0.01105326]
[1765252863526,0.01105289,90474.0,90471.0,0.01105326]
[1765252863830,0.23210591,90476.0,90471.0,0.01105326]
[1765252863831,0.01105277,90475.0,90471.0,0.23211834]
[1765252863979,0.01105253,90477.0,90472.0,0.22106287]
[1765252864371,0.01105265,90476.0,90473.0,0.01105302]
[1765252864779,0.01105277,90475.0,90471.0,0.01105326]
[1765252864980,0.01105253,90477.0,90473.0,0.01105302]
[1765252865414,0.22105309,90476.0,90473.0,0.001]
[1765252865576,0.01105253,90477.0,90473.0,0.001]
[1765252865793,0.01105253,90477.0,90472.0,0.01105314]
[1765252866138,0.01105277,90475.0,90472.0,0.01105314]
[1765252866538,0.01105265,90476.0,90473.0,0.01105302]
[1765252866747,0.01105277,90475.0,90472.0,0.01105314]
[1765252866921,0.01105277,90475.0,90470.0,0.22206546]
[1765252866922,0.01105277,90475.0,90470.0,0.23311884]
[1765252867266,0.01105277,90475.0,90471.0,0.01105326]
[1765252867609,0.01105277,90475.0,90473.0,0.001]
[1765252868048,0.01105277,90475.0,90471.0,0.01105326]
[1765252868814,0.01105277,90475.0,90473.0,0.001]
[1765252869015,0.00997889,90475.0,90473.0,0.001]
[1765252869237,0.01105289,90474.0,90471.0,0.01105326]
[1765252869448,0.01105289,90474.0,90471.0,0.01205326]
[1765252869601,0.01105289,90474.0,90471.0,0.001]
[1765252870020,0.22106245,90473.0,90471.0,0.001]
[1765252870236,0.03741952,90472.0,90471.0,0.00138615]
[1765252870441,0.03729431,90472.0,90471.0,0.00138615]
[1765252870644,0.03729431,90472.0,90471.0,0.00038615]
[1765252871932,0.0153342,90472.0,90471.0,0.00138615]
[1765252872126,0.033013,90474.0,90471.0,0.00138615]
[1765252872348,0.25835659,90473.0,90471.0,0.00038615]
[1765252872689,0.22093707,90473.0,90471.0,0.00038615]
[1765252872891,0.25823138,90473.0,90471.0,0.00038615]
[1765252873143,0.23103653,90475.0,90471.0,0.00038615]
[1765252873144,0.01105265,90476.0,90471.0,0.00038615]
[1765252873361,0.22104512,90480.0,90474.0,0.01105289]
[1765252873362,0.01105253,90477.0,90474.0,0.01105289]
[1765252874441,0.01105253,90477.0,90473.0,0.01105302]
[1765252874647,0.23210555,90477.0,90474.0,0.001]
[1765252874850,0.22105509,90476.0,90474.0,0.001]
[1765252875184,0.0153342,90475.0,90474.0,0.001]
[1765252875330,0.22106287,90472.0,90471.0,0.00038615]
[1765252876295,0.22096928,90472.0,90471.0,0.00038615]
[1765252878041,0.01105289,90474.0,90471.0,0.00038615]
[1765252878191,0.22106042,90473.0,90471.0,0.00038615]
[1765252879889,0.0153342,90472.0,90471.0,0.00038615]
[1765252880087,0.03729431,90472.0,90471.0,0.00038615]
[1765252881288,0.0153342,90472.0,90471.0,0.00038615]
[1765252881706,0.03729431,90472.0,90471.0,0.00038615]
[1765252881912,0.0153342,90472.0,90471.0,0.00038615]
[1765252882146,0.01470303,90472.0,90471.0,0.00038615]
[1765252882713,0.03666314,90472.0,90471.0,0.00038615]
[1765252883114,0.02196011,90472.0,90471.0,0.00038615]
[1765252884721,0.03666314,90472.0,90471.0,0.00038615]
[1765252885046,0.02196011,90472.0,90471.0,0.00038615]
[1765252885191,0.01105277,90475.0,90472.0,0.01105314]
[1765252885392,0.23210358,90477.0,90472.0,0.01105314]
[1765252885846,0.01105265,90476.0,90472.0,0.01105314]
[1765252886267,0.03268282,90476.0,90473.0,0.01105302]
[1765252887315,0.03368282,90476.0,90473.0,0.01105302]
[1765252887557,0.01105277,90475.0,90472.0,0.01105314]
[1765252887766,0.01105277,90475.0,90471.0,0.23250413]
[1765252887767,0.01105289,90474.0,90471.0,0.00038615]
[1765252887917,0.2321129,90474.0,90471.0,0.00038615]
[1765252888112,0.02194511,90473.0,90471.0,0.00038615]
[1765252888522,0.02194511,90472.0,90471.0,0.00038615]
[1765252888753,0.22093738,90473.0,90471.0,0.00038615]
[1765252889423,0.22193738,90473.0,90471.0,0.00038615]
[1765252889661,0.02470121,90472.0,90471.0,0.00038615]
[1765252889841,0.00999818,90472.0,90471.0,0.00038615]
[1765252890041,0.02470121,90472.0,90471.0,0.00038615]
[1765252890373,0.02191236,90472.0,90471.0,0.00038615]
[1765252890574,0.03661539,90472.0,90471.0,0.00038615]
[1765252891754,0.02191236,90472.0,90471.0,0.00038615]
[1765252893253,0.03661539,90472.0,90471.0,0.00038615]
[1765252894558,0.01105509,90456.0,90452.0,0.323]
[1765252894768,0.01105509,90456.0,90452.0,0.3231159]
[1765252895176,0.01105509,90456.0,90453.0,0.01105546]
[1765252895606,0.23215275,90458.0,90453.0,0.01105546]
[1765252895813,0.01105497,90457.0,90454.0,0.01105534]
[1765252896017,0.00989246,90457.0,90454.0,0.01105534]
[1765252897015,0.00989246,90457.0,90454.0,0.01205534]
[1765252897437,0.02191236,90456.0,90454.0,0.001]
[1765252897814,0.22110441,90455.0,90454.0,0.001]
[1765252898199,0.23099397,90457.0,90454.0,0.001]
[1765252898638,0.01105522,90455.0,90454.0,0.001]
[1765252898836,0.01105522,90455.0,90454.0,0.003]
[1765252899222,0.01074028,90455.0,90454.0,0.001]
[1765252899459,0.01074028,90455.0,90454.0,0.002]
[1765252899655,0.03180482,90457.0,90454.0,0.002]
[1765252899861,0.25290675,90457.0,90452.0,0.01117148]
[1765252900095,0.01105522,90455.0,90454.0,0.002]
[1765252901444,0.03296758,90455.0,90454.0,0.002]
[1765252901846,0.01105522,90455.0,90454.0,0.001]
[1765252902173,0.03296758,90455.0,90454.0,0.001]
[1765252902772,0.03296758,90455.0,90454.0,0.003]
[1765252903195,0.22108604,90463.0,90457.0,0.01105497]
[1765252903330,0.01087494,90462.0,90458.0,0.01105485]
[1765252903535,0.0110546,90460.0,90456.0,0.01105509]
[1765252903950,0.0110546,90460.0,90457.0,0.23215399]
[1765252904147,0.0110546,90460.0,90457.0,0.23215418]
[1765252904368,0.23196461,90462.0,90458.0,0.01105485]
[1765252904369,0.01087494,90462.0,90458.0,0.01105485]
[1765252904989,0.01087494,90462.0,90459.0,0.01105473]
[1765252905605,0.00992738,90462.0,90459.0,0.01105473]
[1765252905941,0.01105448,90461.0,90458.0,0.01105485]
[1765252907099,0.0110546,90460.0,90457.0,0.01105497]
[1765252908319,0.00992738,90462.0,90458.0,0.01105485]
[1765252908726,0.01105448,90461.0,90457.0,0.01205497]
[1765252909246,0.0110546,90460.0,90457.0,0.01105497]
[1765252909607,0.01105448,90461.0,90458.0,0.01105485]
[1765252910014,0.01105448,90461.0,90457.0,0.01266784]
[1765252910200,0.23214679,90460.0,90457.0,0.00161287]
[1765252910400,0.22109708,90458.0,90457.0,0.00161287]
[1765252911220,0.24300944,90458.0,90457.0,0.00161287]
[1765252911843,0.24300944,90458.0,90457.0,0.00261287]
[1765252912637,0.22109708,90458.0,90457.0,0.00261287]
[1765252912837,0.22096553,90458.0,90457.0,0.00261287]
[1765252914518,0.22080868,90458.0,90457.0,0.00261287]
[1765252918058,0.24272104,90458.0,90457.0,0.00261287]
[1765252919590,0.23214679,90460.0,90457.0,0.00261287]
[1765252920458,0.0110546,90460.0,90457.0,0.00261287]
[1765252920696,0.0110546,90460.0,90457.0,0.01266784]
[1765252920892,0.01073961,90460.0,90457.0,0.01366784]
[1765252921210,0.01105448,90461.0,90457.0,0.01366784]
[1765252921695,0.22107508,90467.0,90460.0,0.0110546]
[1765252921940,0.01105338,90470.0,90465.0,0.01105399]
[1765252922155,0.01105338,90470.0,90467.0,0.01105375]
[1765252922308,0.01105277,90475.0,90471.0,0.01105326]
[1765252922712,0.22105798,90474.0,90471.0,0.01105326]
[1765252922940,0.01105277,90475.0,90471.0,0.01105326]
[1765252923548,0.01305277,90475.0,90471.0,0.01105326]
[1765252923766,0.01105289,90474.0,90471.0,0.01105326]
[1765252924797,0.23211098,90474.0,90471.0,0.01105326]
[1765252925017,0.01105289,90474.0,90471.0,0.01205326]
[1765252925981,0.01094234,90474.0,90471.0,0.01205326]
[1765252926590,0.01105241,90478.0,90473.0,0.01105302]
[1765252926815,0.01105253,90477.0,90474.0,0.01105289]
[1765252928240,0.01105228,90479.0,90476.0,0.01105265]
[1765252928885,0.01105253,90477.0,90474.0,0.01105289]
[1765252929609,0.01205228,90479.0,90474.0,0.23211052]
[1765252929907,0.01105241,90478.0,90475.0,0.01105277]
[1765252931215,0.01205241,90478.0,90475.0,0.01105277]
[1765252932132,0.01105265,90476.0,90473.0,0.01105302]
[1765252932359,0.01105289,90474.0,90470.0,0.01205337]
[1765252932704,0.01105289,90474.0,90471.0,0.03319705]
[1765252932998,0.23211311,90474.0,90471.0,0.03319705]
[1765252933206,0.22106287,90472.0,90471.0,0.03319705]
[1765252934364,0.22106287,90472.0,90471.0,0.03419705]
[1765252935956,0.23211311,90474.0,90471.0,0.03419705]
[1765252936443,0.22106284,90473.0,90471.0,0.03419705]
[1765252937186,0.22106284,90473.0,90471.0,0.03319705]
[1765252938015,0.2210625,90473.0,90471.0,0.03419705]
[1765252938660,0.23211311,90474.0,90471.0,0.03419705]
[1765252939058,0.22106287,90472.0,90471.0,0.03419705]
[1765252939260,0.23211311,90474.0,90471.0,0.03419705]
[1765252939873,0.22106216,90473.0,90471.0,0.03319705]
[1765252940018,0.22106216,90473.0,90471.0,0.03419705]
[1765252940337,0.22106216,90473.0,90471.0,0.03319705]
[1765252941337,0.22106216,90473.0,90471.0,0.03419705]
[1765252952916,0.03661539,90472.0,90471.0,0.001]
[1765252953463,0.01105522,90455.0,90450.0,0.00099999]
[1765252953666,0.01105522,90455.0,90453.0,0.03320106]
[1765252954493,0.22110686,90454.0,90453.0,0.03320106]
[1765252954818,0.22109369,90460.0,90453.0,0.03320106]
[1765252954819,0.02191236,90461.0,90454.0,0.01105534]
[1765252955020,0.01105314,90472.0,90463.0,0.01105424]
[1765252955196,0.01105314,90472.0,90468.0,0.01105363]
[1765252955411,0.003,90472.0,90469.0,0.23212338]
[1765252955609,0.01105289,90474.0,90470.0,0.01105338]
[1765252956149,0.01105289,90474.0,90471.0,0.01105326]
[1765252956460,0.01105277,90475.0,90471.0,0.01105326]
[1765252956783,0.01105277,90475.0,90472.0,0.01105314]
[1765252957217,0.22105309,90476.0,90472.0,0.01105314]
[1765252957440,0.01105253,90477.0,90473.0,0.01105302]
[1765252958698,0.01105179,90483.0,90473.0,0.01105302]
[1765252958899,0.01105179,90483.0,90478.0,0.01105241]
[1765252958900,0.01105192,90482.0,90478.0,0.01105241]
[1765252959507,0.01105179,90483.0,90479.0,0.01105228]
[1765252959932,0.001,90482.0,90479.0,0.01105228]
[1765252960441,0.001,90482.0,90480.0,0.01105216]
[1765252960834,0.01205192,90482.0,90479.0,0.01105228]
[1765252961158,0.01205192,90482.0,90479.0,0.0442468]
[1765252961597,0.01143807,90482.0,90479.0,0.0442468]
[1765252961756,0.01243807,90482.0,90479.0,0.0442468]
[1765252961952,0.01143807,90482.0,90479.0,0.0442468]
[1765252962335,0.01143807,90482.0,90479.0,0.0452468]
[1765252963381,0.00038615,90482.0,90479.0,0.0452468]
[1765252964189,0.23247852,90482.0,90479.0,0.03419452]
[1765252964695,0.2210431,90481.0,90479.0,0.03419452]
[1765252964990,0.2210431,90481.0,90479.0,0.001]
[1765252965188,0.2210431,90481.0,90480.0,0.03319452]
[1765252966504,0.2210431,90481.0,90480.0,0.03419452]
[1765252967269,0.00038615,90482.0,90480.0,0.03419452]
[1765252967468,0.00038615,90482.0,90481.0,0.29157088]
[1765252967698,0.00038615,90482.0,90480.0,0.001]
[1765252967901,0.00038615,90482.0,90481.0,0.01744]
[1765252968673,0.00038615,90482.0,90481.0,0.01844]
[1765252978192,0.00038615,90482.0,90481.0,0.04054408]
[1765252979343,0.00038615,90482.0,90481.0,0.01844]
[1765252980692,0.00038615,90482.0,90481.0,0.001]
[1765252980899,0.02229851,90482.0,90481.0,0.001]
[1765252981341,0.02229851,90482.0,90470.0,0.01205337]
[1765252981579,0.02191236,90474.0,90471.0,0.01105326]
[1765252981792,0.02191236,90474.0,90471.0,0.23211759]
[1765252982185,0.01105228,90479.0,90476.0,0.01105265]
[1765252982390,0.00338615,90482.0,90480.0,0.22104093]
[1765252982937,0.00338615,90482.0,90481.0,0.09189408]
[1765252983134,0.00338615,90482.0,90481.0,0.07140287]
[1765252983395,0.00238615,90482.0,90481.0,0.09350695]
[1765252983714,0.00238615,90482.0,90481.0,0.43394695]
[1765252983840,0.00038615,90482.0,90481.0,0.41184287]
[1765252984457,0.00038615,90482.0,90481.0,0.41384287]
[1765252984660,0.00038615,90482.0,90481.0,0.41284287]
[1765252984859,0.00438615,90482.0,90481.0,0.41284287]
[1765252985057,0.00438615,90482.0,90481.0,0.41184287]
[1765252986628,0.00638615,90482.0,90481.0,0.41184287]
[1765252988709,0.00638615,90482.0,90481.0,1.58300287]
[1765252991684,0.00638615,90482.0,90481.0,1.60499887]
[1765252995382,0.00638615,90482.0,90481.0,1.58300287]
[1765252995551,0.00638615,90482.0,90481.0,1.21246687]
[1765252997837,0.00638615,90482.0,90481.0,1.15705987]
[1765252998700,0.00638615,90482.0,90481.0,1.13506387]
[1765252998874,0.00638615,90482.0,90481.0,1.15705987]
[1765253002781,0.00638615,90482.0,90481.0,1.14641387]
[1765253004232,0.00638615,90482.0,90481.0,1.12441787]
[1765253004448,0.00638615,90482.0,90481.0,1.10934787]
[1765253004640,0.00638615,90482.0,90481.0,1.13997787]
[1765253004843,0.00638615,90482.0,90481.0,1.07618687]
[1765253005696,0.00638615,90482.0,90481.0,0.53892887]
[1765253005845,0.00638615,90482.0,90481.0,0.53840987]
[1765253008095,0.00638615,90482.0,90481.0,0.52096987]
[1765253008264,0.00638615,90482.0,90481.0,0.53840987]
[1765253012258,0.00638615,90482.0,90481.0,0.56040587]
[1765253012394,0.00638615,90482.0,90481.0,0.59976226]
[1765253013317,0.00638615,90482.0,90481.0,0.56040587]
[1765253013701,0.00638615,90482.0,90481.0,0.52096987]
[1765253013941,0.00638615,90482.0,90481.0,0.53840987]
[1765253014342,0.00638615,90482.0,90481.0,0.59148281]
[1765253015626,0.00638615,90482.0,90481.0,0.57404281]
[1765253015826,0.00638615,90482.0,90481.0,0.59148281]
[1765253016430,0.00638615,90482.0,90481.0,0.55210787]
[1765253018814,0.00638615,90482.0,90481.0,0.37933287]
[1765253018968,0.00638615,90482.0,90481.0,0.03502287]
[1765253019148,0.00638615,90482.0,90481.0,0.03649287]
[1765253019346,0.00638615,90482.0,90481.0,0.01905287]
[1765253019547,0.00638615,90482.0,90481.0,0.25753375]
[1765253019752,0.00638615,90482.0,90481.0,0.58053375]
[1765253020193,0.00638615,90482.0,90481.0,0.60064375]
[1765253020379,0.00638615,90482.0,90481.0,0.63127375]
[1765253021566,0.00638615,90482.0,90481.0,0.61383375]
[1765253021764,0.00638615,90482.0,90481.0,0.63127375]
[1765253021995,0.00638615,90482.0,90481.0,0.65326975]
[1765253022838,0.00638615,90482.0,90481.0,0.63127375]
[1765253030243,0.00638615,90482.0,90481.0,0.64690375]
[1765253037466,0.00638615,90482.0,90481.0,0.59616375]
[1765253040349,0.00638615,90482.0,90481.0,0.61700375]
[1765253041485,0.00638615,90482.0,90481.0,0.57711088]
[1765253041700,0.00638615,90482.0,90481.0,0.323]
[1765253044188,0.02829851,90482.0,90481.0,0.323]
[1765253044399,0.00638615,90482.0,90481.0,0.323]
[1765253044762,0.02829851,90482.0,90481.0,0.323]
[1765253045002,0.00638615,90482.0,90481.0,0.323]
[1765253045250,0.01105265,90476.0,90473.0,0.01105302]
[1765253045699,0.01105216,90480.0,90475.0,0.01105277]
[1765253045904,0.01105228,90479.0,90475.0,0.01105277]
[1765253046963,0.01105228,90479.0,90475.0,0.01305277]
[1765253047174,0.23210284,90478.0,90475.0,0.003]
[1765253047397,0.22105271,90477.0,90475.0,0.003]
[1765253047616,0.02191236,90476.0,90475.0,0.002]
[1765253047833,0.02191236,90476.0,90475.0,0.003]
[1765253048041,0.24296507,90477.0,90475.0,0.003]
[1765253048464,0.02191236,90476.0,90475.0,0.003]
[1765253049092,0.03296525,90474.0,90471.0,0.01105326]
[1765253049298,0.01105289,90474.0,90471.0,0.01105326]
[1765253049771,0.01105289,90474.0,90465.0,0.01105399]
[1765253049772,0.01105314,90472.0,90466.0,0.2321314]
[1765253049981,0.01105351,90469.0,90466.0,0.01105387]
[1765253052087,0.01105338,90470.0,90467.0,0.01105375]
[1765253053059,0.01105351,90469.0,90466.0,0.001]
[1765253053367,0.01105326,90471.0,90467.0,0.01405375]
[1765253053694,0.01105265,90476.0,90473.0,0.01105302]
[1765253053890,0.03296501,90476.0,90472.0,0.01105314]
[1765253054212,0.01105277,90475.0,90470.0,0.01105338]
[1765253054828,0.01105289,90474.0,90470.0,0.01105338]
[1765253055012,0.23210792,90476.0,90471.0,0.23211857]
[1765253056280,0.23210792,90476.0,90471.0,0.23311857]
[1765253056776,0.23210792,90476.0,90473.0,0.01105302]
[1765253058370,0.23210792,90476.0,90471.0,0.23211857]
[1765253058945,0.01105277,90475.0,90473.0,0.001]
[1765253059120,0.01105277,90475.0,90471.0,0.23211857]
[1765253059121,0.01105277,90475.0,90471.0,0.01105326]
[1765253059508,0.01105277,90475.0,90471.0,0.01205326]
[1765253059703,0.23210792,90476.0,90472.0,0.01105314]
[1765253059704,0.01105265,90476.0,90472.0,0.01105314]
[1765253060109,0.23210587,90476.0,90473.0,0.002]
[1765253060327,0.01105277,90475.0,90472.0,0.01105314]
[1765253060850,0.01105289,90474.0,90471.0,0.01305326]
[1765253061959,0.01105289,90474.0,90471.0,0.01105326]
[1765253062205,0.01105302,90473.0,90470.0,0.01105338]
[1765253062861,0.01105302,90473.0,90471.0,0.002]
[1765253063028,0.01105302,90473.0,90470.0,0.01105338]
[1765253063778,0.01105289,90474.0,90470.0,0.23211907]
[1765253064110,0.24293102,90491.0,90476.0,0.01105265]
[1765253064313,0.2210331,90485.0,90480.0,0.01498]
[1765253064444,0.01105167,90484.0,90480.0,0.01498]
[1765253064644,0.01105155,90485.0,90480.0,0.01498]
[1765253064989,0.01105167,90484.0,90480.0,0.01498]
[1765253065215,0.01105143,90486.0,90480.0,0.23602327]
[1765253066266,0.01105155,90485.0,90480.0,0.23602327]
[1765253066655,0.01105155,90485.0,90480.0,0.23802327]
[1765253067064,0.01105167,90484.0,90480.0,0.23802327]
[1765253067903,0.01105155,90485.0,90480.0,0.23802327]
[1765253068099,0.01105167,90484.0,90480.0,0.23802327]
[1765253069678,0.01105179,90483.0,90480.0,0.002]
[1765253069902,0.22142685,90482.0,90480.0,0.002]
[1765253071069,0.00038615,90482.0,90480.0,0.002]
[1765253071275,0.02229851,90482.0,90480.0,0.002]
[1765253071714,0.00038615,90482.0,90480.0,0.002]